[Event "Early-Titled-Tuesday-Blitz-February-27-2024"]
[Site "Chess.com"]
[Date "2024.02.27"]
[Round "10"]
[White "Zq1"]
[Black "VitaliyChayka"]
[Result "1/2-1/2"]
[WhiteElo "2617"]
[BlackElo "2510"]
[TimeControl "180+1"]
[EndTime "9:55:51 PST"]
[Termination "Game drawn by repetition"]

1. d4 {[%clk 0:03:00.9]} 1... d6 {[%clk 0:02:59.6]} 2. Nf3 {[%clk 0:02:58.6]}
2... Nd7 {[%clk 0:02:59.5]} 3. c4 {[%clk 0:02:58.4]} 3... e5 {[%clk 0:02:59.8]}
4. Nc3 {[%clk 0:02:58.7]} 4... Ngf6 {[%clk 0:02:59.8]} 5. e4 {[%clk 0:02:58.7]}
5... Be7 {[%clk 0:03:00.2]} 6. Be2 {[%clk 0:02:58.9]} 6... O-O {[%clk
0:03:00.9]} 7. O-O {[%clk 0:02:59.1]} 7... c6 {[%clk 0:03:01.4]} 8. Be3 {[%clk
0:02:58.9]} 8... Ng4 {[%clk 0:02:58.8]} 9. Bd2 {[%clk 0:02:58.6]} 9... Qe8
{[%clk 0:02:58.2]} 10. d5 {[%clk 0:02:56.3]} 10... Bd8 {[%clk 0:02:54]} 11. h3
{[%clk 0:02:52.4]} 11... Ngf6 {[%clk 0:02:53.7]} 12. Be3 {[%clk 0:02:50]} 12...
Qe7 {[%clk 0:02:52]} 13. Qd2 {[%clk 0:02:42.7]} 13... Bb6 {[%clk 0:02:51.8]} 14.
Bxb6 {[%clk 0:02:29.2]} 14... Nxb6 {[%clk 0:02:47.7]} 15. Rfd1 {[%clk 0:02:26]}
15... c5 {[%clk 0:02:47.2]} 16. a3 {[%clk 0:02:26.1]} 16... a6 {[%clk
0:02:17.9]} 17. b4 {[%clk 0:02:23.7]} 17... Nbd7 {[%clk 0:02:17.3]} 18. Ne1
{[%clk 0:02:22.1]} 18... Ne8 {[%clk 0:02:13.9]} 19. Nd3 {[%clk 0:02:20.7]} 19...
b6 {[%clk 0:02:09.1]} 20. a4 {[%clk 0:02:17.9]} 20... a5 {[%clk 0:01:44]} 21.
bxc5 {[%clk 0:02:14.4]} 21... dxc5 {[%clk 0:01:36]} 22. f4 {[%clk 0:02:03.1]}
22... Nd6 {[%clk 0:01:33.5]} 23. Nb5 {[%clk 0:01:34.4]} 23... Nxe4 {[%clk
0:01:19.1]} 24. Qe3 {[%clk 0:01:25.9]} 24... exf4 {[%clk 0:00:54.5]} 25. Qxf4
{[%clk 0:01:07.7]} 25... Ndf6 {[%clk 0:00:53.7]} 26. Bf3 {[%clk 0:01:00.8]}
26... g5 {[%clk 0:00:30.1]} 27. Qc7 {[%clk 0:00:52.4]} 27... Qxc7 {[%clk
0:00:25.8]} 28. Nxc7 {[%clk 0:00:51.8]} 28... Ra7 {[%clk 0:00:26.7]} 29. Nb5
{[%clk 0:00:51.6]} 29... Re7 {[%clk 0:00:26.6]} 30. d6 {[%clk 0:00:38.2]} 30...
Re6 {[%clk 0:00:23.5]} 31. Re1 {[%clk 0:00:32.7]} 31... Rd8 {[%clk 0:00:18]} 32.
Rad1 {[%clk 0:00:24.9]} 32... Nxd6 {[%clk 0:00:17.5]} 33. Rxe6 {[%clk
0:00:18.1]} 33... Bxe6 {[%clk 0:00:18.4]} 34. Nxc5 {[%clk 0:00:17.7]} 34... bxc5
{[%clk 0:00:17.6]} 35. Rxd6 {[%clk 0:00:16.6]} 35... Rxd6 {[%clk 0:00:13.5]} 36.
Nxd6 {[%clk 0:00:16.6]} 36... Nd7 {[%clk 0:00:14.4]} 37. Be2 {[%clk 0:00:14.4]}
37... Nb6 {[%clk 0:00:14.4]} 38. Nb7 {[%clk 0:00:13.6]} 38... Nxa4 {[%clk
0:00:13.5]} 39. Nxa5 {[%clk 0:00:12.7]} 39... Nb6 {[%clk 0:00:10.9]} 40. Kf2
{[%clk 0:00:11.6]} 40... f5 {[%clk 0:00:10.3]} 41. Ke3 {[%clk 0:00:11.8]} 41...
Kg7 {[%clk 0:00:10.6]} 42. g3 {[%clk 0:00:12]} 42... Kf6 {[%clk 0:00:10.7]} 43.
Nb7 {[%clk 0:00:11.3]} 43... Bxc4 {[%clk 0:00:06.5]} 44. Nxc5 {[%clk 0:00:10.2]}
44... Bxe2 {[%clk 0:00:06.5]} 45. Kxe2 {[%clk 0:00:10.3]} 45... Nd5 {[%clk
0:00:04.6]} 46. Kf3 {[%clk 0:00:10.3]} 46... Ke5 {[%clk 0:00:04.4]} 47. Nd3+
{[%clk 0:00:09.5]} 47... Kf6 {[%clk 0:00:04.7]} 48. Nc5 {[%clk 0:00:09]} 48...
Nc3 {[%clk 0:00:05.1]} 49. Nd7+ {[%clk 0:00:08.2]} 49... Ke6 {[%clk 0:00:04.9]}
50. Nf8+ {[%clk 0:00:07.3]} 50... Kf7 {[%clk 0:00:04.9]} 51. Nxh7 {[%clk
0:00:07.2]} 51... Kg6 {[%clk 0:00:02.7]} 52. Nf8+ {[%clk 0:00:07.2]} 52... Kf6
{[%clk 0:00:02.6]} 53. Nh7+ {[%clk 0:00:07.1]} 53... Kg6 {[%clk 0:00:03.2]} 54.
Nf8+ {[%clk 0:00:06.4]} 54... Kf7 {[%clk 0:00:03.8]} 55. Nh7 {[%clk 0:00:06.5]}
55... Kg6 {[%clk 0:00:04.3]} 1/2-1/2

[Event "Early-Titled-Tuesday-Blitz-February-27-2024"]
[Site "Chess.com"]
[Date "2024.02.27"]
[Round "10"]
[White "ViktoriyaTarasova"]
[Black "m_ezat"]
[Result "0-1"]
[WhiteElo "2314"]
[BlackElo "2492"]
[TimeControl "180+1"]
[EndTime "9:55:51 PST"]
[Termination "m_ezat won on time"]

1. d4 {[%clk 0:02:58]} 1... Nf6 {[%clk 0:02:50.9]} 2. c4 {[%clk 0:02:57.4]} 2...
g6 {[%clk 0:02:39.1]} 3. Nc3 {[%clk 0:02:57.1]} 3... Bg7 {[%clk 0:02:36.2]} 4.
e4 {[%clk 0:02:57]} 4... O-O {[%clk 0:02:34.8]} 5. h3 {[%clk 0:02:57.5]} 5... d6
{[%clk 0:02:32.7]} 6. Be3 {[%clk 0:02:56.3]} 6... Nc6 {[%clk 0:02:27.7]} 7. d5
{[%clk 0:02:55.5]} 7... Ne5 {[%clk 0:02:27.3]} 8. Be2 {[%clk 0:02:55.5]} 8... c5
{[%clk 0:02:25.7]} 9. f4 {[%clk 0:02:54]} 9... Ned7 {[%clk 0:02:25.6]} 10. Nf3
{[%clk 0:02:51.1]} 10... a6 {[%clk 0:02:22.7]} 11. a4 {[%clk 0:02:50.7]} 11...
Qc7 {[%clk 0:02:22.7]} 12. O-O {[%clk 0:02:50.3]} 12... Re8 {[%clk 0:02:19.9]}
13. Qc2 {[%clk 0:02:48.4]} 13... e6 {[%clk 0:02:17]} 14. Bf2 {[%clk 0:02:38.6]}
14... exd5 {[%clk 0:02:15.3]} 15. exd5 {[%clk 0:02:38.3]} 15... Nf8 {[%clk
0:02:12.6]} 16. Bd3 {[%clk 0:02:38]} 16... Nh5 {[%clk 0:02:09.2]} 17. Qd2 {[%clk
0:02:15.2]} 17... f5 {[%clk 0:02:06.1]} 18. Rfe1 {[%clk 0:02:10.7]} 18... Bd7
{[%clk 0:02:05.9]} 19. g3 {[%clk 0:02:03.3]} 19... h6 {[%clk 0:02:03.1]} 20. b3
{[%clk 0:02:01.8]} 20... Qb6 {[%clk 0:01:59.5]} 21. Qc2 {[%clk 0:01:55]} 21...
Qb4 {[%clk 0:01:53.3]} 22. Na2 {[%clk 0:01:43]} 22... Qa5 {[%clk 0:01:45.5]} 23.
Rxe8 {[%clk 0:01:36.2]} 23... Bxe8 {[%clk 0:01:35.9]} 24. Re1 {[%clk 0:01:34.2]}
24... b5 {[%clk 0:01:35.9]} 25. axb5 {[%clk 0:00:49.1]} 25... axb5 {[%clk
0:01:35.3]} 26. Nc1 {[%clk 0:00:49.6]} 26... bxc4 {[%clk 0:01:22.3]} 27. Bxc4
{[%clk 0:00:32.9]} 27... Bb5 {[%clk 0:01:17.5]} 28. Nd3 {[%clk 0:00:24.9]} 28...
Nf6 {[%clk 0:01:06]} 29. Kg2 {[%clk 0:00:19.1]} 29... Ne4 {[%clk 0:01:05.8]} 30.
Bxb5 {[%clk 0:00:17.3]} 30... Qxb5 {[%clk 0:01:05.3]} 31. Re2 {[%clk 0:00:16.7]}
31... Rb8 {[%clk 0:01:02.8]} 32. Nc1 {[%clk 0:00:14.6]} 32... Nd7 {[%clk
0:00:57.2]} 33. Nd2 {[%clk 0:00:13.5]} 33... Ndf6 {[%clk 0:00:53.4]} 34. Nc4
{[%clk 0:00:12.5]} 34... Qb7 {[%clk 0:00:40.7]} 35. g4 {[%clk 0:00:09.9]} 35...
Qxd5 {[%clk 0:00:38.8]} 36. Kh2 {[%clk 0:00:09.3]} 36... fxg4 {[%clk 0:00:37.1]}
37. h4 {[%clk 0:00:05.9]} 37... Nxf2 {[%clk 0:00:30.6]} 38. Rxf2 {[%clk
0:00:06.1]} 38... g3+ {[%clk 0:00:29.5]} 39. Kxg3 {[%clk 0:00:05.6]} 39... Ne4+
{[%clk 0:00:29.9]} 40. Kh2 {[%clk 0:00:06.2]} 40... Nxf2 {[%clk 0:00:30]} 41.
Qxf2 {[%clk 0:00:06.9]} 41... Rf8 {[%clk 0:00:26.2]} 42. Qg3 {[%clk 0:00:05.2]}
42... Kh7 {[%clk 0:00:25.1]} 43. Ne2 {[%clk 0:00:04.6]} 43... Qe4 {[%clk
0:00:21]} 44. Qf2 {[%clk 0:00:03.4]} 44... d5 {[%clk 0:00:20]} 45. Nd6 {[%clk
0:00:02.5]} 45... Qe6 {[%clk 0:00:20]} 46. Nb5 {[%clk 0:00:02]} 46... d4 {[%clk
0:00:17.8]} 47. Ng3 {[%clk 0:00:02.1]} 47... Qg4 {[%clk 0:00:16.4]} 48. h5
{[%clk 0:00:01.6]} 48... gxh5 {[%clk 0:00:11.9]} 49. f5 {[%clk 0:00:01.8]} 49...
h4 {[%clk 0:00:11.5]} 50. Nf1 {[%clk 0:00:01.3]} 50... Be5+ {[%clk 0:00:11.2]}
51. Kh1 {[%clk 0:00:01.2]} 51... Rxf5 {[%clk 0:00:11]} 0-1

[Event "Early-Titled-Tuesday-Blitz-February-27-2024"]
[Site "Chess.com"]
[Date "2024.02.27"]
[Round "10"]
[White "Manukyan_Artak"]
[Black "ketster"]
[Result "1/2-1/2"]
[WhiteElo "2489"]
[BlackElo "2588"]
[TimeControl "180+1"]
[EndTime "9:55:52 PST"]
[Termination "Game drawn by repetition"]

1. e4 {[%clk 0:03:00.9]} 1... c5 {[%clk 0:02:56.4]} 2. Nf3 {[%clk 0:03:00.7]}
2... Nf6 {[%clk 0:02:55.4]} 3. Nc3 {[%clk 0:02:55.4]} 3... d5 {[%clk 0:02:53.6]}
4. exd5 {[%clk 0:02:54.2]} 4... Nxd5 {[%clk 0:02:54.5]} 5. Bb5+ {[%clk
0:02:44.1]} 5... Bd7 {[%clk 0:02:54.1]} 6. Ne5 {[%clk 0:02:20]} 6... Bxb5 {[%clk
0:02:53.2]} 7. Nxb5 {[%clk 0:02:14.3]} 7... e6 {[%clk 0:02:25]} 8. Qf3 {[%clk
0:02:10.7]} 8... Qf6 {[%clk 0:02:12.9]} 9. Qxf6 {[%clk 0:01:42.7]} 9... gxf6
{[%clk 0:02:13.8]} 10. Nc4 {[%clk 0:01:40.4]} 10... Kd7 {[%clk 0:01:57.6]} 11.
d3 {[%clk 0:01:33.2]} 11... a6 {[%clk 0:01:57.1]} 12. Nc3 {[%clk 0:01:32.7]}
12... Kc6 {[%clk 0:01:38.1]} 13. a4 {[%clk 0:01:29]} 13... Nb4 {[%clk
0:01:34.6]} 14. Kd1 {[%clk 0:01:26.1]} 14... Nd7 {[%clk 0:01:31.7]} 15. a5
{[%clk 0:01:19.1]} 15... h5 {[%clk 0:01:24.5]} 16. Ne4 {[%clk 0:01:08.6]} 16...
Rg8 {[%clk 0:01:13.1]} 17. g3 {[%clk 0:01:08]} 17... f5 {[%clk 0:01:02.4]} 18.
Ng5 {[%clk 0:01:03.5]} 18... Rg7 {[%clk 0:00:44.4]} 19. h4 {[%clk 0:00:52.2]}
19... Be7 {[%clk 0:00:41.7]} 20. Nh3 {[%clk 0:00:47.2]} 20... Bf6 {[%clk
0:00:31.6]} 21. Bg5 {[%clk 0:00:42.5]} 21... Kc7 {[%clk 0:00:22.3]} 22. Bxf6
{[%clk 0:00:41.1]} 22... Nxf6 {[%clk 0:00:23.2]} 23. Kd2 {[%clk 0:00:38.9]}
23... Rd8 {[%clk 0:00:23]} 24. Nf4 {[%clk 0:00:34.1]} 24... Nbd5 {[%clk
0:00:17.6]} 25. Nxd5+ {[%clk 0:00:32.5]} 25... exd5 {[%clk 0:00:10.5]} 26. Ne5
{[%clk 0:00:30]} 26... Kd6 {[%clk 0:00:06.5]} 27. Rae1 {[%clk 0:00:28.6]} 27...
Re8 {[%clk 0:00:06.8]} 28. Nf3 {[%clk 0:00:24.7]} 28... Rxe1 {[%clk 0:00:04.8]}
29. Rxe1 {[%clk 0:00:25.6]} 29... Ng4 {[%clk 0:00:05.2]} 30. Re2 {[%clk
0:00:24.9]} 30... f6 {[%clk 0:00:05.1]} 31. Ne1 {[%clk 0:00:23.1]} 31... f4
{[%clk 0:00:05.1]} 32. gxf4 {[%clk 0:00:21.7]} 32... Nh2 {[%clk 0:00:05.5]} 33.
f3 {[%clk 0:00:20]} 33... Nf1+ {[%clk 0:00:04.3]} 34. Kd1 {[%clk 0:00:19.4]}
34... Ng3 {[%clk 0:00:04.5]} 35. Rg2 {[%clk 0:00:18.7]} 35... Nf5 {[%clk
0:00:05.1]} 36. Rxg7 {[%clk 0:00:18.4]} 36... Nxg7 {[%clk 0:00:06]} 37. Ng2
{[%clk 0:00:18.7]} 37... Nf5 {[%clk 0:00:06.7]} 38. Ke2 {[%clk 0:00:19.2]} 38...
d4 {[%clk 0:00:06.8]} 39. c3 {[%clk 0:00:18.9]} 39... Kd5 {[%clk 0:00:06.5]} 40.
c4+ {[%clk 0:00:18.9]} 40... Kc6 {[%clk 0:00:06.5]} 41. Kd2 {[%clk 0:00:18.1]}
41... b5 {[%clk 0:00:05]} 42. axb6 {[%clk 0:00:17.5]} 42... Kxb6 {[%clk
0:00:05.3]} 43. Kc2 {[%clk 0:00:17.8]} 43... Ka5 {[%clk 0:00:05.1]} 44. Kb3
{[%clk 0:00:17.5]} 44... Kb6 {[%clk 0:00:03.8]} 45. Ka4 {[%clk 0:00:17.2]} 45...
Kb7 {[%clk 0:00:02.9]} 46. b4 {[%clk 0:00:17.4]} 46... Kb6 {[%clk 0:00:02.4]}
47. bxc5+ {[%clk 0:00:17.1]} 47... Kxc5 {[%clk 0:00:03]} 48. Ka5 {[%clk
0:00:17.8]} 48... Ne3 {[%clk 0:00:02.3]} 49. Ne1 {[%clk 0:00:17.4]} 49... Nf5
{[%clk 0:00:01.4]} 50. Ng2 {[%clk 0:00:16.5]} 50... Ne3 {[%clk 0:00:01.7]} 51.
Ne1 {[%clk 0:00:13]} 51... Nf5 {[%clk 0:00:01.6]} 52. Ng2 {[%clk 0:00:12]}
1/2-1/2

[Event "Early-Titled-Tuesday-Blitz-February-27-2024"]
[Site "Chess.com"]
[Date "2024.02.27"]
[Round "10"]
[White "FairChess_on_YouTube"]
[Black "Njal28"]
[Result "0-1"]
[WhiteElo "3097"]
[BlackElo "3019"]
[TimeControl "180+1"]
[EndTime "9:55:54 PST"]
[Termination "Njal28 won on time"]

1. d4 {[%clk 0:03:00.9]} 1... Nf6 {[%clk 0:03:00.1]} 2. c4 {[%clk 0:03:00.9]}
2... e6 {[%clk 0:03:00.5]} 3. Nf3 {[%clk 0:03:01]} 3... d5 {[%clk 0:03:01.1]} 4.
g3 {[%clk 0:03:01.4]} 4... Be7 {[%clk 0:03:01.7]} 5. Bg2 {[%clk 0:03:01.7]} 5...
O-O {[%clk 0:03:02.4]} 6. O-O {[%clk 0:03:01.7]} 6... dxc4 {[%clk 0:03:03.1]} 7.
Qa4 {[%clk 0:03:00.9]} 7... a6 {[%clk 0:03:00.8]} 8. Qxc4 {[%clk 0:03:01]} 8...
b5 {[%clk 0:03:01.1]} 9. Qc2 {[%clk 0:03:01.6]} 9... Bb7 {[%clk 0:03:01.5]} 10.
Bd2 {[%clk 0:03:02.2]} 10... Be4 {[%clk 0:03:00.8]} 11. Qc1 {[%clk 0:03:02.6]}
11... c6 {[%clk 0:03:01]} 12. Rd1 {[%clk 0:03:00.8]} 12... Nbd7 {[%clk
0:02:52.8]} 13. Bf4 {[%clk 0:02:54.9]} 13... Nd5 {[%clk 0:02:44.7]} 14. Nc3
{[%clk 0:02:51.6]} 14... Nxc3 {[%clk 0:02:39.6]} 15. Qxc3 {[%clk 0:02:48.9]}
15... Rc8 {[%clk 0:02:38.3]} 16. Ne5 {[%clk 0:02:29.4]} 16... Bxg2 {[%clk
0:02:36.7]} 17. Kxg2 {[%clk 0:02:30.3]} 17... Nf6 {[%clk 0:02:35.1]} 18. Qf3
{[%clk 0:02:24.6]} 18... Nd5 {[%clk 0:02:28.1]} 19. Rac1 {[%clk 0:02:22.7]}
19... c5 {[%clk 0:02:13.3]} 20. dxc5 {[%clk 0:02:18.6]} 20... Rxc5 {[%clk
0:02:14.2]} 21. Rxc5 {[%clk 0:01:21.4]} 21... Bxc5 {[%clk 0:02:14]} 22. e4
{[%clk 0:01:15.8]} 22... Nxf4+ {[%clk 0:02:12.1]} 23. gxf4 {[%clk 0:01:16.7]}
23... Qf6 {[%clk 0:02:05.5]} 24. Rd7 {[%clk 0:01:03.2]} 24... g5 {[%clk
0:01:10.8]} 25. Rb7 {[%clk 0:00:35.6]} 25... gxf4 {[%clk 0:00:32.5]} 26. Qg4+
{[%clk 0:00:29.8]} 26... Kh8 {[%clk 0:00:07.1]} 27. Qh5 {[%clk 0:00:29.9]} 27...
Be7 {[%clk 0:00:05.3]} 28. Kf3 {[%clk 0:00:27.1]} 28... Kg8 {[%clk 0:00:03.5]}
29. Nd7 {[%clk 0:00:18.7]} 29... Qd4 {[%clk 0:00:03.4]} 30. Nxf8 {[%clk
0:00:16.4]} 30... Qd1+ {[%clk 0:00:03.4]} 31. Kxf4 {[%clk 0:00:12.8]} 31... Qxh5
{[%clk 0:00:04.3]} 32. Nd7 {[%clk 0:00:12.9]} 32... Bd6+ {[%clk 0:00:03.9]} 33.
e5 {[%clk 0:00:13]} 33... Qf5+ {[%clk 0:00:03.5]} 34. Ke3 {[%clk 0:00:12.6]}
34... Bxe5 {[%clk 0:00:04.3]} 35. f3 {[%clk 0:00:08.9]} 35... Bf4+ {[%clk
0:00:04.7]} 36. Kd4 {[%clk 0:00:08.5]} 36... Kg7 {[%clk 0:00:05.6]} 37. Nb6
{[%clk 0:00:08]} 37... Qe5+ {[%clk 0:00:05.3]} 38. Kd3 {[%clk 0:00:08.5]} 38...
Qe3+ {[%clk 0:00:05.5]} 39. Kc2 {[%clk 0:00:08.9]} 39... Qd2+ {[%clk 0:00:05.8]}
40. Kb3 {[%clk 0:00:09.4]} 40... Qd3+ {[%clk 0:00:06.3]} 41. Kb4 {[%clk
0:00:10]} 41... Bd2+ {[%clk 0:00:06.9]} 42. Kc5 {[%clk 0:00:10.4]} 42... Be3+
{[%clk 0:00:07.4]} 43. Kc6 {[%clk 0:00:11.1]} 43... Bxb6 {[%clk 0:00:07.9]} 44.
Kxb6 {[%clk 0:00:11.4]} 44... Qxf3 {[%clk 0:00:06.7]} 45. Kxa6 {[%clk
0:00:11.6]} 45... e5 {[%clk 0:00:06.6]} 46. Rxb5 {[%clk 0:00:11.8]} 46... e4
{[%clk 0:00:07.1]} 47. Rg5+ {[%clk 0:00:12.2]} 47... Kf6 {[%clk 0:00:07.3]} 48.
Rg3 {[%clk 0:00:13.1]} 48... Qf1+ {[%clk 0:00:07]} 49. Ka5 {[%clk 0:00:13]}
49... Qe1+ {[%clk 0:00:06.9]} 50. b4 {[%clk 0:00:13.3]} 50... e3 {[%clk
0:00:07.3]} 51. Rf3+ {[%clk 0:00:13.1]} 51... Kg6 {[%clk 0:00:06.6]} 52. a4
{[%clk 0:00:12.6]} 52... e2 {[%clk 0:00:06.9]} 53. Rg3+ {[%clk 0:00:12.2]} 53...
Qxg3 {[%clk 0:00:06.9]} 0-1

[Event "Early-Titled-Tuesday-Blitz-February-27-2024"]
[Site "Chess.com"]
[Date "2024.02.27"]
[Round "10"]
[White "Binary010"]
[Black "Iskusnyh"]
[Result "0-1"]
[WhiteElo "2833"]
[BlackElo "2697"]
[TimeControl "180+1"]
[EndTime "9:55:54 PST"]
[Termination "Iskusnyh won on time"]

1. d4 {[%clk 0:03:00.9]} 1... d5 {[%clk 0:02:58.9]} 2. c4 {[%clk 0:03:00.6]}
2... c6 {[%clk 0:02:58.4]} 3. Nf3 {[%clk 0:03:00.2]} 3... Nf6 {[%clk 0:02:58.9]}
4. Qc2 {[%clk 0:02:59.6]} 4... dxc4 {[%clk 0:02:58.1]} 5. e4 {[%clk 0:02:59.7]}
5... b5 {[%clk 0:02:54.1]} 6. b3 {[%clk 0:02:59.8]} 6... cxb3 {[%clk 0:02:48.7]}
7. axb3 {[%clk 0:03:00.7]} 7... e6 {[%clk 0:02:48.2]} 8. Bd3 {[%clk 0:02:57.7]}
8... a5 {[%clk 0:02:45.1]} 9. O-O {[%clk 0:02:57.1]} 9... Bb7 {[%clk 0:02:42.9]}
10. Nc3 {[%clk 0:02:49.4]} 10... Na6 {[%clk 0:02:40.6]} 11. Qe2 {[%clk
0:02:46.9]} 11... Nb4 {[%clk 0:02:37.9]} 12. Bb1 {[%clk 0:02:42.7]} 12... Be7
{[%clk 0:02:31.6]} 13. Bg5 {[%clk 0:02:36.5]} 13... h6 {[%clk 0:02:29.4]} 14.
Bh4 {[%clk 0:02:24.1]} 14... O-O {[%clk 0:02:11.4]} 15. Rd1 {[%clk 0:02:11.4]}
15... Re8 {[%clk 0:01:46.2]} 16. h3 {[%clk 0:01:44]} 16... Nd7 {[%clk
0:01:38.5]} 17. Bxe7 {[%clk 0:01:40.1]} 17... Qxe7 {[%clk 0:01:39.4]} 18. e5
{[%clk 0:01:40.3]} 18... c5 {[%clk 0:01:36.1]} 19. Nxb5 {[%clk 0:01:30.1]} 19...
Bxf3 {[%clk 0:01:29]} 20. Qxf3 {[%clk 0:01:29]} 20... cxd4 {[%clk 0:01:29.1]}
21. Qe4 {[%clk 0:01:07.9]} 21... d3 {[%clk 0:01:17.5]} 22. Nd6 {[%clk
0:01:06.6]} 22... Red8 {[%clk 0:01:05.3]} 23. Nb7 {[%clk 0:00:38.3]} 23... Nc5
{[%clk 0:00:53.7]} 24. Nxc5 {[%clk 0:00:38.3]} 24... Qxc5 {[%clk 0:00:53.9]} 25.
Bxd3 {[%clk 0:00:38.5]} 25... Nxd3 {[%clk 0:00:52.6]} 26. Rxd3 {[%clk
0:00:38.5]} 26... Rxd3 {[%clk 0:00:51.8]} 27. Qxa8+ {[%clk 0:00:37.6]} 27... Qf8
{[%clk 0:00:48.7]} 28. Qxa5 {[%clk 0:00:26]} 28... Rxb3 {[%clk 0:00:47.9]} 29.
Rd1 {[%clk 0:00:26.1]} 29... Rb8 {[%clk 0:00:46.7]} 30. h4 {[%clk 0:00:22.3]}
30... h5 {[%clk 0:00:45.4]} 31. g3 {[%clk 0:00:22.7]} 31... g6 {[%clk
0:00:45.6]} 32. Rd7 {[%clk 0:00:21.8]} 32... Qc8 {[%clk 0:00:38.5]} 33. Qd2
{[%clk 0:00:20.2]} 33... Rb1+ {[%clk 0:00:36.6]} 34. Kh2 {[%clk 0:00:20.5]}
34... Qc6 {[%clk 0:00:36.8]} 35. f3 {[%clk 0:00:04.9]} 35... Qxf3 {[%clk
0:00:34.8]} 36. Qg2 {[%clk 0:00:05]} 36... Qxg2+ {[%clk 0:00:26.8]} 37. Kxg2
{[%clk 0:00:05.9]} 37... Re1 {[%clk 0:00:26.5]} 38. Kf3 {[%clk 0:00:06]} 38...
Rxe5 {[%clk 0:00:26.4]} 39. Ra7 {[%clk 0:00:06.8]} 39... Kg7 {[%clk 0:00:26.1]}
40. Rb7 {[%clk 0:00:06.9]} 40... Rd5 {[%clk 0:00:26.3]} 41. Ra7 {[%clk
0:00:07.2]} 41... Rd3+ {[%clk 0:00:26.4]} 42. Kf2 {[%clk 0:00:05.5]} 42... Rb3
{[%clk 0:00:27.3]} 43. Rc7 {[%clk 0:00:05.2]} 43... e5 {[%clk 0:00:27.2]} 44.
Ra7 {[%clk 0:00:04.5]} 44... Kf6 {[%clk 0:00:27.4]} 45. Ra6+ {[%clk 0:00:02.7]}
45... Kf5 {[%clk 0:00:27.4]} 46. Ra7 {[%clk 0:00:03.6]} 46... f6 {[%clk
0:00:27.4]} 47. Rg7 {[%clk 0:00:04]} 47... Rb2+ {[%clk 0:00:25.6]} 48. Kf3
{[%clk 0:00:04.1]} 48... Rb3+ {[%clk 0:00:26.5]} 49. Kf2 {[%clk 0:00:04.6]}
49... Ra3 {[%clk 0:00:26.7]} 50. Rg8 {[%clk 0:00:04.6]} 50... Ra7 {[%clk
0:00:26.2]} 51. Ke3 {[%clk 0:00:03.7]} 51... Ra3+ {[%clk 0:00:21.8]} 52. Kf2
{[%clk 0:00:04.1]} 52... e4 {[%clk 0:00:22.3]} 53. Re8 {[%clk 0:00:02.7]} 53...
Rf3+ {[%clk 0:00:21]} 54. Kg2 {[%clk 0:00:02.9]} 54... Rb3 {[%clk 0:00:20.9]}
55. Kf2 {[%clk 0:00:03.1]} 55... Rb5 {[%clk 0:00:21.3]} 56. Rg8 {[%clk
0:00:01.1]} 56... Ra5 {[%clk 0:00:19.3]} 0-1

[Event "Early-Titled-Tuesday-Blitz-February-27-2024"]
[Site "Chess.com"]
[Date "2024.02.27"]
[Round "10"]
[White "Dewarfd"]
[Black "tarno17"]
[Result "0-1"]
[WhiteElo "2141"]
[BlackElo "2150"]
[TimeControl "180+1"]
[EndTime "9:55:55 PST"]
[Termination "tarno17 won on time"]

1. d4 {[%clk 0:02:59.5]} 1... d5 {[%clk 0:03:00.3]} 2. e3 {[%clk 0:02:58.6]}
2... e6 {[%clk 0:03:00.6]} 3. Nf3 {[%clk 0:02:58.6]} 3... Nf6 {[%clk 0:03:01.3]}
4. Bd3 {[%clk 0:02:58.8]} 4... Be7 {[%clk 0:03:01.4]} 5. O-O {[%clk 0:02:58.8]}
5... O-O {[%clk 0:03:02.2]} 6. b3 {[%clk 0:02:58.4]} 6... b6 {[%clk 0:03:02.8]}
7. Bb2 {[%clk 0:02:58.4]} 7... Bb7 {[%clk 0:03:03.2]} 8. Nbd2 {[%clk 0:02:57.8]}
8... Nbd7 {[%clk 0:03:00]} 9. Ne5 {[%clk 0:02:55.2]} 9... Ne4 {[%clk 0:02:58.5]}
10. f4 {[%clk 0:02:51.5]} 10... f5 {[%clk 0:02:54.4]} 11. Rf3 {[%clk 0:02:33.4]}
11... Rf6 {[%clk 0:02:39.3]} 12. Rh3 {[%clk 0:02:32.9]} 12... Nxd2 {[%clk
0:02:34.2]} 13. Qxd2 {[%clk 0:02:32.1]} 13... Nxe5 {[%clk 0:02:26]} 14. fxe5
{[%clk 0:02:25.1]} 14... Rg6 {[%clk 0:02:26.4]} 15. Rf1 {[%clk 0:02:20.8]} 15...
Bh4 {[%clk 0:02:12.2]} 16. Qe2 {[%clk 0:02:13]} 16... Bg5 {[%clk 0:01:41.7]} 17.
Bc3 {[%clk 0:02:07.3]} 17... Bh6 {[%clk 0:01:32.3]} 18. Be1 {[%clk 0:02:01]}
18... Rg4 {[%clk 0:01:17.4]} 19. c3 {[%clk 0:01:40.4]} 19... Qg5 {[%clk
0:01:15.6]} 20. Rff3 {[%clk 0:01:22.8]} 20... Rf8 {[%clk 0:01:07.1]} 21. Rfg3
{[%clk 0:01:22.6]} 21... c5 {[%clk 0:00:38.5]} 22. Rxg4 {[%clk 0:00:41.7]} 22...
Qxg4 {[%clk 0:00:28.1]} 23. Qxg4 {[%clk 0:00:38.7]} 23... fxg4 {[%clk 0:00:29]}
24. Rg3 {[%clk 0:00:39]} 24... Bg5 {[%clk 0:00:17.9]} 25. Bd2 {[%clk 0:00:35]}
25... h5 {[%clk 0:00:17.6]} 26. Bg6 {[%clk 0:00:20.3]} 26... Bh4 {[%clk
0:00:16.6]} 27. Bxh5 {[%clk 0:00:19.7]} 27... Bxg3 {[%clk 0:00:17]} 28. hxg3
{[%clk 0:00:20.6]} 28... cxd4 {[%clk 0:00:17.2]} 29. cxd4 {[%clk 0:00:20.4]}
29... Rc8 {[%clk 0:00:14.1]} 30. Bxg4 {[%clk 0:00:19.9]} 30... Kf7 {[%clk
0:00:14.5]} 31. Bh5+ {[%clk 0:00:17.4]} 31... g6 {[%clk 0:00:14.7]} 32. Bd1
{[%clk 0:00:16.3]} 32... Ba6 {[%clk 0:00:14.4]} 33. Kf2 {[%clk 0:00:16.1]} 33...
Bd3 {[%clk 0:00:14.6]} 34. Ke1 {[%clk 0:00:16.1]} 34... Bc2 {[%clk 0:00:14.2]}
35. Ke2 {[%clk 0:00:14]} 35... a5 {[%clk 0:00:12.5]} 36. Ke1 {[%clk 0:00:11.2]}
36... Bxd1 {[%clk 0:00:09.7]} 37. Kxd1 {[%clk 0:00:11.3]} 37... g5 {[%clk
0:00:09.8]} 38. Be1 {[%clk 0:00:08]} 38... Kg6 {[%clk 0:00:09.7]} 39. g4 {[%clk
0:00:07]} 39... Rh8 {[%clk 0:00:09]} 40. b4 {[%clk 0:00:03.2]} 40... a4 {[%clk
0:00:07.4]} 41. b5 {[%clk 0:00:02.8]} 41... Rh2 {[%clk 0:00:06.3]} 42. Bb4
{[%clk 0:00:02.1]} 42... Kf7 {[%clk 0:00:04]} 43. Bd6 {[%clk 0:00:01.4]} 43...
Rxg2 {[%clk 0:00:04.2]} 44. Bc7 {[%clk 0:00:01.5]} 44... Rxa2 {[%clk 0:00:04]}
45. Kc1 {[%clk 0:00:01.6]} 45... Rg2 {[%clk 0:00:03.3]} 46. Bxb6 {[%clk
0:00:01.8]} 46... a3 {[%clk 0:00:02.4]} 0-1